[Event "ETCC Women 2013"]
[Site "Warsaw"]
[Date "2013.11.15"]
[Round "7"]
[White "Galojan, Lilit"]
[Black "Wozniak, Mariola"]
[Result "1-0"]
[ECO "A25"]
[WhiteElo "2301"]
[BlackElo "2069"]
[PlyCount "67"]
[EventDate "2013.??.??"]
[EventCountry "POL"]
[WhiteTeam "Armenia"]
[BlackTeam "Poland"]
[WhiteTeamCountry "ARM"]
[BlackTeamCountry "POL"]
[TimeControl "40/5400+30:1800+30"]

1. c4 {[%emt 0:00:00]} e5 {[%emt 0:07:17]} 2. Nc3 {[%emt 0:00:56]} Nc6 {[%emt
0:01:43]} 3. g3 {[%emt 0:01:21]} g6 {[%emt 0:00:51]} 4. Bg2 {[%emt 0:00:20]}
Bg7 {[%emt 0:00:35]} 5. e3 {[%emt 0:00:08]} Nf6 {[%emt 0:01:51]} 6. Nge2 {
[%emt 0:00:20]} O-O {[%emt 0:00:54]} 7. O-O {[%emt 0:10:15]} d6 {[%emt 0:02:19]
} 8. a3 {[%emt 0:02:27]} a5 {[%emt 0:08:37]} 9. d3 {[%emt 0:05:09]} Be6 {[%emt
0:12:36]} 10. Nd5 {[%emt 0:00:14]} Bxd5 {[%emt 0:12:36]} 11. cxd5 {[%emt 0:00:
06]} Ne7 {[%emt 0:00:09]} 12. Nc3 {[%emt 0:00:21]} Qd7 {[%emt 0:02:53]} 13. Bd2
{[%emt 0:04:53]} c6 {[%emt 0:15:48]} 14. dxc6 {[%emt 0:00:13]} bxc6 {[%emt 0:
00:07]} 15. Qc2 {[%emt 0:06:29]} d5 {[%emt 0:10:03]} 16. Na4 {[%emt 0:02:03]}
Qa7 {[%emt 0:02:37]} 17. Nc5 {[%emt 0:02:46]} Nd7 {[%emt 0:01:21]} 18. Nxd7 {
[%emt 0:03:42]} Qxd7 {[%emt 0:00:03]} 19. b4 {[%emt 0:00:07]} a4 {[%emt 0:00:
42]} 20. Rac1 {[%emt 0:01:19]} f5 {[%emt 0:05:59]} 21. f4 {[%emt 0:01:00]} e4 {
[%emt 0:00:35]} 22. Rfd1 {[%emt 0:02:53]} exd3 {[%emt 0:03:26]} 23. Qxd3 {
[%emt 0:00:05]} Rfd8 {[%emt 0:03:15]} 24. Rc5 {[%emt 0:02:23]} Qa7 {[%emt 0:03:
54]} 25. Bc3 {[%emt 0:03:04]} Bxc3 {[%emt 0:00:17]} 26. Qxc3 {[%emt 0:00:12]}
Kf7 {[%emt 0:00:53]} 27. h3 {[%emt 0:05:02]} Rd7 {[%emt 0:01:30]} 28. g4 {
[%emt 0:00:25]} Qb6 {[%emt 0:00:31]} 29. g5 {[%emt 0:04:36]} Rd6 {[%emt 0:00:
16]} 30. h4 {[%emt 0:00:04]} Re6 {[%emt 0:00:26]} 31. Bf3 {[%emt 0:02:57]} Qb8
{[%emt 0:00:48]} 32. b5 {[%emt 0:01:33]} cxb5 {[%emt 0:00:24]} 33. Rc7 {[%emt
0:02:56]} Ra7 {[%emt 0:00:37]} 34. Bxd5 {[%emt 0:00:31]} 1-0

[Event "ETCC Women 2013"]
[Site "Warsaw"]
[Date "2013.11.15"]
[Round "7"]
[White "Gaponenko, Inna"]
[Black "Toma, Katarzyna"]
[Result "1/2-1/2"]
[ECO "C60"]
[WhiteElo "2402"]
[BlackElo "2282"]
[PlyCount "69"]
[EventDate "2013.??.??"]
[EventCountry "POL"]
[WhiteTeam "Ukraine"]
[BlackTeam "Poland"]
[WhiteTeamCountry "UKR"]
[BlackTeamCountry "POL"]
[TimeControl "40/5400+30:1800+30"]

1. e4 {[%emt 0:00:00]} e5 {[%emt 0:00:00]} 2. Nf3 {[%emt 0:00:00]} Nc6 {[%emt
0:00:00]} 3. Bb5 {[%emt 0:01:21]} Nge7 {[%emt 0:00:00]} 4. c3 {[%emt 0:01:32]}
a6 {[%emt 0:00:37]} 5. Ba4 {[%emt 0:00:45]} g6 {[%emt 0:00:17]} 6. d4 {[%emt 0:
01:47]} exd4 {[%emt 0:00:07]} 7. cxd4 {[%emt 0:00:04]} b5 {[%emt 0:00:44]} 8.
Bc2 {[%emt 0:01:45]} Bg7 {[%emt 0:12:10]} 9. d5 {[%emt 0:01:20]} Na5 {[%emt 0:
01:01]} 10. Bd2 {[%emt 0:00:45]} c5 {[%emt 0:06:46]} 11. Bc3 {[%emt 0:10:51]}
O-O {[%emt 0:15:08]} 12. Bxg7 {[%emt 0:39:06]} Kxg7 {[%emt 0:00:42]} 13. b4 {
[%emt 0:00:04]} cxb4 {[%emt 0:08:07]} 14. Qd4+ {[%emt 0:00:09]} f6 {[%emt 0:00:
25]} 15. Nbd2 {[%emt 0:11:25]} Bb7 {[%emt 0:02:43]} 16. Qxb4 {[%emt 0:08:21]}
Rc8 {[%emt 0:11:21]} 17. Bd3 {[%emt 0:00:00]} f5 {[%emt 0:06:02]} 18. O-O {
[%emt 0:05:33]} fxe4 {[%emt 0:03:44]} 19. Bxe4 {[%emt 0:00:16]} Nc4 {[%emt 0:
04:03]} 20. Nxc4 {[%emt 0:01:07]} Rxc4 {[%emt 0:00:11]} 21. Qb2+ {[%emt 0:00:
04]} Kg8 {[%emt 0:00:32]} 22. Nd2 {[%emt 0:00:33]} Ra4 {[%emt 0:05:35]} 23. Bc2
{[%emt 0:05:15]} Rg4 {[%emt 0:02:45]} 24. h3 {[%emt 0:03:14]} Rxg2+ {[%emt 0:
12:27]} 25. Kxg2 {[%emt 0:00:04]} Nxd5 {[%emt 0:00:03]} 26. Bb3 {[%emt 0:05:41]
} Rf7 {[%emt 0:03:42]} 27. Kh2 {[%emt 0:01:50]} Qc7+ {[%emt 0:03:14]} 28. Kg1 {
[%emt 0:00:10]} Qf4 {[%emt 0:00:37]} 29. Rae1 {[%emt 0:00:48]} Qg5+ {[%emt 0:
00:39]} 30. Kh2 {[%emt 0:00:03]} Qf4+ {[%emt 0:00:55]} 31. Kg1 {[%emt 0:00:34]}
Qg5+ {[%emt 0:00:00]} 32. Kh2 {[%emt 0:00:03]} Qf4+ {[%emt 0:00:00]} 33. Kg1 {
[%emt 0:01:13]} Qg5+ {[%emt 0:00:14]} 34. Kh2 {[%emt 0:00:02]} Qf4+ {[%emt 0:
00:10]} 35. Kg1 {[%emt 0:01:12]} 1/2-1/2

[Event "ETCC Women 2013"]
[Site "Warsaw"]
[Date "2013.11.15"]
[Round "7"]
[White "Girya, Olga"]
[Black "Rudolf, Anna"]
[Result "0-1"]
[ECO "D31"]
[WhiteElo "2447"]
[BlackElo "2281"]
[PlyCount "120"]
[EventDate "2013.??.??"]
[EventCountry "POL"]
[WhiteTeam "Russia"]
[BlackTeam "Hungary"]
[WhiteTeamCountry "RUS"]
[BlackTeamCountry "HUN"]
[TimeControl "40/5400+30:1800+30"]

1. d4 {[%emt 0:00:00]} d5 {[%emt 0:00:00]} 2. c4 {[%emt 0:00:00]} e6 {[%emt 0:
00:00]} 3. Nc3 {[%emt 0:00:00]} Be7 {[%emt 0:00:04]} 4. cxd5 {[%emt 0:00:09]}
exd5 {[%emt 0:00:10]} 5. Bf4 c6 {[%emt 0:00:36]} 6. Qc2 {[%emt 0:00:26]} Bd6 {
[%emt 0:10:30]} 7. Bxd6 {[%emt 0:00:22]} Qxd6 {[%emt 0:00:09]} 8. e3 Qg6 9.
Qxg6 {[%emt 0:00:59]} hxg6 {[%emt 0:00:00]} 10. Nf3 Nf6 11. b4 {[%emt 0:06:03]}
Bf5 {[%emt 0:01:28]} 12. b5 {[%emt 0:04:27]} Ke7 {[%emt 0:04:30]} 13. Rc1 {
[%emt 0:16:42]} Rc8 {[%emt 0:04:37]} 14. Ne5 {[%emt 0:03:54]} c5 {[%emt 0:10:
58]} 15. g4 {[%emt 0:08:52]} Be6 {[%emt 0:12:12]} 16. dxc5 {[%emt 0:10:21]}
Rxc5 {[%emt 0:00:58]} 17. Nd3 {[%emt 0:00:42]} Rc8 {[%emt 0:08:40]} 18. f3 {
[%emt 0:06:30]} Nbd7 {[%emt 0:01:19]} 19. g5 {[%emt 0:01:08]} Ne8 {[%emt 0:12:
39]} 20. Kf2 {[%emt 0:05:08]} Nd6 {[%emt 0:02:51]} 21. Nf4 {[%emt 0:06:22]} Rc5
{[%emt 0:10:54]} 22. Nd3 {[%emt 0:02:43]} Rc4 {[%emt 0:02:13]} 23. Nf4 {[%emt
0:03:00]} Rc5 {[%emt 0:00:28]} 24. Bd3 {[%emt 0:10:06]} Rac8 {[%emt 0:01:50]}
25. Nce2 {[%emt 0:00:27]} Ne5 {[%emt 0:02:31]} 26. a4 {[%emt 0:03:04]} Nxd3+ {
[%emt 0:01:57]} 27. Nxd3 {[%emt 0:00:02]} Rc4 {[%emt 0:02:21]} 28. Ra1 {[%emt
0:00:28]} Rc2 {[%emt 0:02:28]} 29. Rhc1 {[%emt 0:00:58]} R8c4 {[%emt 0:01:44]}
30. Rxc2 {[%emt 0:01:01]} Rxc2 {[%emt 0:00:18]} 31. Ndf4 {[%emt 0:02:40]} Nc4 {
[%emt 0:02:14]} 32. Rd1 {[%emt 0:05:02]} Ra2 {[%emt 0:01:29]} 33. Nxd5+ {[%emt
0:00:50]} Bxd5 {[%emt 0:00:06]} 34. Rxd5 {[%emt 0:00:02]} Rxa4 {[%emt 0:00:30]}
35. Nf4 {[%emt 0:02:04]} Nd6 {[%emt 0:01:46]} 36. e4 {[%emt 0:02:23]} Rb4 {
[%emt 0:01:13]} 37. Re5+ {[%emt 0:00:55]} Kd7 {[%emt 0:01:06]} 38. Nd5 {[%emt
0:00:33]} Rxb5 {[%emt 0:00:33]} 39. h4 {[%emt 0:00:08]} a5 {[%emt 0:00:43]} 40.
h5 {[%emt 0:00:00]} gxh5 {[%emt 0:00:00]} 41. g6 {[%emt 0:00:47]} fxg6 {[%emt
0:08:43]} 42. Re7+ {[%emt 0:00:13]} Kd8 {[%emt 0:00:37]} 43. Rxg7 {[%emt 0:00:
09]} Nc4 {[%emt 0:10:47]} 44. Rg8+ {[%emt 0:09:18]} Kd7 {[%emt 0:00:09]} 45.
Rg7+ {[%emt 0:00:06]} Kd8 {[%emt 0:00:15]} 46. Rg8+ {[%emt 0:00:05]} Kd7 {
[%emt 0:00:05]} 47. Rg7+ {[%emt 0:00:01]} Kd6 {[%emt 0:01:31]} 48. Rxg6+ {
[%emt 0:00:10]} Ke5 {[%emt 0:00:44]} 49. Kg3 {[%emt 0:06:22]} Rb3 {[%emt 0:03:
39]} 50. Nc7 {[%emt 0:05:37]} a4 {[%emt 0:07:03]} 51. Rg5+ {[%emt 0:03:30]} Kf6
{[%emt 0:03:02]} 52. Rf5+ {[%emt 0:00:42]} Ke7 {[%emt 0:00:23]} 53. Rxh5 {
[%emt 0:04:58]} a3 {[%emt 0:00:28]} 54. e5 {[%emt 0:01:34]} a2 {[%emt 0:00:42]}
55. Rh7+ {[%emt 0:00:18]} Kf8 {[%emt 0:00:29]} 56. e6 {[%emt 0:01:15]} Kg8 {
[%emt 0:00:33]} 57. e7 {[%emt 0:01:56]} Nd6 {[%emt 0:00:05]} 58. Rh1 {[%emt 0:
01:49]} Rb1 {[%emt 0:00:15]} 59. Rh6 {[%emt 0:01:32]} a1=Q {[%emt 0:00:51]} 60.
Rxd6 {[%emt 0:00:05]} Qe5+ {[%emt 0:00:16]} 0-1

[Event "ETCC Women 2013"]
[Site "Warsaw"]
[Date "2013.11.15"]
[Round "7"]
[White "Gronnestad, Anita"]
[Black "Manakova, Maria"]
[Result "0-1"]
[ECO "B20"]
[WhiteElo "1958"]
[BlackElo "2324"]
[PlyCount "46"]
[EventDate "2013.??.??"]
[EventCountry "POL"]
[WhiteTeam "Norway"]
[BlackTeam "Serbia"]
[WhiteTeamCountry "NOR"]
[BlackTeamCountry "SRB"]
[TimeControl "40/5400+30:1800+30"]

1. e4 {[%emt 0:00:00]} c5 {[%emt 0:00:00]} 2. c4 {[%emt 0:00:00]} Nc6 {[%emt 0:
02:02]} 3. Nc3 {[%emt 0:00:30]} g6 {[%emt 0:01:05]} 4. g3 {[%emt 0:00:31]} Bg7
{[%emt 0:00:11]} 5. Bg2 {[%emt 0:00:26]} e6 {[%emt 0:02:32]} 6. Nge2 {[%emt 0:
01:08]} d6 {[%emt 0:00:56]} 7. d3 {[%emt 0:01:14]} Nge7 {[%emt 0:00:19]} 8. a3
{[%emt 0:01:00]} O-O {[%emt 0:02:20]} 9. O-O {[%emt 0:05:13]} b6 {[%emt 0:09:
44]} 10. Rb1 {[%emt 0:02:38]} Bb7 {[%emt 0:01:59]} 11. b4 {[%emt 0:06:32]} Qd7
{[%emt 0:02:10]} 12. h3 {[%emt 0:12:18]} Nd4 {[%emt 0:03:18]} 13. Nxd4 {[%emt
0:04:17]} cxd4 {[%emt 0:01:17]} 14. Ne2 {[%emt 0:03:28]} f5 {[%emt 0:09:09]}
15. Bb2 {[%emt 0:13:52]} e5 {[%emt 0:02:03]} 16. Kh2 {[%emt 0:12:45]} Rac8 {
[%emt 0:11:21]} 17. Qb3 {[%emt 0:01:39]} fxe4 {[%emt 0:00:32]} 18. dxe4 {[%emt
0:02:31]} Qe6 {[%emt 0:00:33]} 19. Qa4 {[%emt 0:07:07]} Rxc4 {[%emt 0:19:59]}
20. Qxa7 {[%emt 0:03:43]} Qd7 {[%emt 0:00:51]} 21. Qxb6 {[%emt 0:01:00]} Rc6 {
[%emt 0:00:35]} 22. Qa5 {[%emt 0:00:50]} Ra6 {[%emt 0:00:10]} 23. Nc1 {[%emt 0:
02:01]} Rxa5 {[%emt 0:00:11]} 0-1

[Event "ETCC Women 2013"]
[Site "Warsaw"]
[Date "2013.11.15"]
[Round "7"]
[White "Gueci, Tea"]
[Black "Nevioselaya, Maria"]
[Result "0-1"]
[ECO "C77"]
[WhiteElo "2056"]
[BlackElo "2074"]
[PlyCount "132"]
[EventDate "2013.??.??"]
[EventCountry "POL"]
[WhiteTeam "Italy"]
[BlackTeam "Belarus"]
[WhiteTeamCountry "ITA"]
[BlackTeamCountry "BLR"]
[TimeControl "40/5400+30:1800+30"]

1. e4 {[%emt 0:00:00]} e5 {[%emt 0:00:00]} 2. Nf3 {[%emt 0:00:00]} Nc6 {[%emt
0:00:00]} 3. Bb5 {[%emt 0:00:00]} a6 {[%emt 0:00:00]} 4. Ba4 {[%emt 0:00:00]}
Nf6 {[%emt 0:00:00]} 5. Qe2 {[%emt 0:00:02]} d6 {[%emt 0:06:49]} 6. c3 {[%emt
0:01:03]} b5 {[%emt 0:05:11]} 7. Bc2 {[%emt 0:04:07]} Be7 {[%emt 0:01:18]} 8.
O-O {[%emt 0:00:17]} O-O {[%emt 0:00:38]} 9. Rd1 {[%emt 0:01:03]} Bd7 {[%emt 0:
09:40]} 10. h3 {[%emt 0:04:00]} Qc8 {[%emt 0:02:28]} 11. d3 {[%emt 0:05:44]}
Ne8 {[%emt 0:05:20]} 12. Nbd2 {[%emt 0:08:50]} f5 {[%emt 0:01:20]} 13. exf5 {
[%emt 0:02:53]} Bxf5 {[%emt 0:00:16]} 14. Nf1 {[%emt 0:01:36]} Nf6 {[%emt 0:05:
21]} 15. Ng3 {[%emt 0:00:58]} Be6 {[%emt 0:13:13]} 16. Re1 {[%emt 0:03:42]} Kh8
{[%emt 0:08:55]} 17. d4 {[%emt 0:01:45]} Bc4 {[%emt 0:01:08]} 18. Qd1 {[%emt 0:
01:22]} exd4 {[%emt 0:06:53]} 19. Nxd4 {[%emt 0:00:35]} Nxd4 {[%emt 0:02:26]}
20. Qxd4 {[%emt 0:00:53]} Qd7 {[%emt 0:09:38]} 21. Bf5 {[%emt 0:10:33]} Qd8 {
[%emt 0:00:13]} 22. Qh4 {[%emt 0:09:38]} Bg8 {[%emt 0:01:34]} 23. Bg5 {[%emt 0:
03:50]} h6 {[%emt 0:08:34]} 24. Bxh6 {[%emt 0:17:58]} gxh6 {[%emt 0:00:41]} 25.
Qxh6+ {[%emt 0:00:09]} Bh7 {[%emt 0:07:29]} 26. Nh5 {[%emt 0:05:28]} Rf7 {
[%emt 0:01:31]} 27. Bg6 {[%emt 0:04:46]} Ng8 {[%emt 0:00:43]} 28. Qe3 {[%emt 0:
02:10]} Bxg6 {[%emt 0:00:06]} 29. Nf4 {[%emt 0:00:28]} Bh7 {[%emt 0:00:14]} 30.
Ne6 {[%emt 0:01:48]} Qd7 {[%emt 0:00:30]} 31. Rad1 {[%emt 0:00:50]} Bf6 {[%emt
0:00:22]} 32. Nd4 {[%emt 0:04:24]} Re7 {[%emt 0:00:42]} 33. Qf3 {[%emt 0:00:36]
} Rxe1+ {[%emt 0:00:23]} 34. Rxe1 {[%emt 0:00:07]} Re8 {[%emt 0:00:21]} 35. Rd1
{[%emt 0:00:47]} Bxd4 {[%emt 0:00:23]} 36. Rxd4 {[%emt 0:01:07]} Qf5 {[%emt 0:
00:54]} 37. Rf4 {[%emt 0:01:46]} Re1+ {[%emt 0:01:08]} 38. Kh2 {[%emt 0:00:06]}
Qe5 {[%emt 0:00:57]} 39. g3 {[%emt 0:01:24]} Re4 {[%emt 0:01:15]} 40. Rf7 {
[%emt 0:00:00]} c5 {[%emt 0:00:00]} 41. Ra7 {[%emt 0:01:48]} Qf5 {[%emt 0:03:
29]} 42. Qxf5 {[%emt 0:01:25]} Bxf5 {[%emt 0:00:06]} 43. Rxa6 {[%emt 0:00:17]}
Re6 {[%emt 0:01:57]} 44. Rb6 {[%emt 0:03:30]} Bd3 {[%emt 0:00:12]} 45. Kg2 {
[%emt 0:01:09]} Nf6 {[%emt 0:00:28]} 46. g4 {[%emt 0:03:26]} Nd5 {[%emt 0:01:
32]} 47. Rb8+ {[%emt 0:01:37]} Kg7 {[%emt 0:00:03]} 48. Rd8 {[%emt 0:00:48]}
Nf4+ {[%emt 0:01:14]} 49. Kg3 {[%emt 0:00:07]} Ne2+ {[%emt 0:00:16]} 50. Kf3 {
[%emt 0:01:20]} Nc1 {[%emt 0:00:25]} 51. a3 {[%emt 0:00:21]} Nb3 {[%emt 0:01:
00]} 52. Kg3 {[%emt 0:02:59]} Kf6 {[%emt 0:01:17]} 53. Rf8+ {[%emt 0:01:41]}
Ke7 {[%emt 0:00:13]} 54. Rf3 {[%emt 0:00:06]} c4 {[%emt 0:01:09]} 55. g5 {
[%emt 0:01:08]} Nd2 {[%emt 0:05:24]} 56. Rf4 {[%emt 0:00:16]} Re4 {[%emt 0:00:
53]} 57. h4 {[%emt 0:02:39]} Rxf4 {[%emt 0:00:41]} 58. Kxf4 {[%emt 0:00:05]}
Kf7 {[%emt 0:00:27]} 59. h5 {[%emt 0:01:07]} Ne4 {[%emt 0:01:31]} 60. g6+ {
[%emt 0:02:04]} Kf6 {[%emt 0:01:07]} 61. Ke3 {[%emt 0:00:20]} Nc5 {[%emt 0:08:
06]} 62. Kd2 {[%emt 0:00:12]} Bf5 {[%emt 0:01:35]} 63. f3 {[%emt 0:01:58]} Nd3
{[%emt 0:00:09]} 64. Ke3 {[%emt 0:01:42]} Nxb2 {[%emt 0:00:39]} 65. Kd4 {[%emt
0:00:35]} Be6 {[%emt 0:01:40]} 66. f4 {[%emt 0:01:00]} Nd1 {[%emt 0:00:25]
Kxc4 bxc4} 0-1

[Event "ETCC Women 2013"]
[Site "Warsaw"]
[Date "2013.11.15"]
[Round "7"]
[White "Hoang, Thanh Trang"]
[Black "Gunina, Valentina"]
[Result "1/2-1/2"]
[ECO "D12"]
[WhiteElo "2511"]
[BlackElo "2509"]
[PlyCount "115"]
[EventDate "2013.??.??"]
[EventCountry "POL"]
[WhiteTeam "Hungary"]
[BlackTeam "Russia"]
[WhiteTeamCountry "HUN"]
[BlackTeamCountry "RUS"]
[TimeControl "40/5400+30:1800+30"]

1. d4 {[%emt 0:00:00]} d5 {[%emt 0:00:00]} 2. c4 {[%emt 0:00:05]} c6 {[%emt 0:
00:00]} 3. Nf3 {[%emt 0:00:23]} Nf6 4. e3 Bf5 5. Nc3 {[%emt 0:01:41]} e6 {
[%emt 0:00:13]} 6. Nh4 {[%emt 0:01:22]} Bg6 {[%emt 0:02:26]} 7. Be2 {[%emt 0:
00:30]} Nbd7 8. O-O Ne4 {[%emt 0:04:40]} 9. g3 {[%emt 0:04:22]} Be7 {[%emt 0:
12:21]} 10. Nxg6 {[%emt 0:04:57]} hxg6 {[%emt 0:01:43]} 11. f3 {[%emt 0:09:13]}
Nxc3 {[%emt 0:01:20]} 12. bxc3 {[%emt 0:00:11]} O-O {[%emt 0:00:19]} 13. Rb1 {
[%emt 0:04:05]} dxc4 {[%emt 0:09:47]} 14. Bxc4 {[%emt 0:05:15]} b5 {[%emt 0:05:
42]} 15. Be2 {[%emt 0:04:31]} a6 {[%emt 0:03:53]} 16. e4 {[%emt 0:02:44]} Qa5 {
[%emt 0:09:08]} 17. Qb3 {[%emt 0:05:14]} c5 {[%emt 0:01:58]} 18. Be3 {[%emt 0:
00:48]} Rac8 {[%emt 0:02:31]} 19. Rfc1 {[%emt 0:08:07]} Rfd8 {[%emt 0:05:45]}
20. Kg2 {[%emt 0:05:10]} Nb6 {[%emt 0:05:55]} 21. Bf2 {[%emt 0:01:09]} Na4 {
[%emt 0:02:25]} 22. Be1 Qc7 23. c4 {[%emt 0:09:25]} cxd4 {[%emt 0:04:07]} 24.
cxb5 {[%emt 0:00:13]} Nc5 {[%emt 0:01:20]} 25. Qa3 {[%emt 0:06:41]} axb5 {
[%emt 0:02:46]} 26. Bxb5 {[%emt 0:00:43]} Ra8 {[%emt 0:00:50]} 27. Qb2 {[%emt
0:00:57]} Qa7 {[%emt 0:01:03]} 28. Bb4 {[%emt 0:03:19]} d3 {[%emt 0:07:26]} 29.
Qf2 {[%emt 0:06:54]} Qxa2 {[%emt 0:02:00]} 30. Rb2 {[%emt 0:00:29]} d2 {[%emt
0:01:08]} 31. Rxd2 {[%emt 0:00:30]} Rxd2 {[%emt 0:00:06]} 32. Bxd2 {[%emt 0:00:
49]} Nb3 {[%emt 0:02:16]} 33. Rc7 {[%emt 0:01:53]} Bc5 {[%emt 0:02:49]} 34. Qe2
{[%emt 0:00:21]} Bb6 {[%emt 0:00:42]} 35. Rb7 {[%emt 0:03:29]} Nd4 {[%emt 0:05:
27]} 36. Qf2 {[%emt 0:01:46]} Bc5 {[%emt 0:02:56]} 37. Be3 {[%emt 0:03:07]} Qa1
{[%emt 0:01:50]} 38. Bc4 {[%emt 0:01:14]} Qc3 {[%emt 0:00:35]} 39. Bf1 {[%emt
0:02:26]} Ra3 {[%emt 0:01:08]} 40. Bxd4 {[%emt 0:00:00]} Bxd4 {[%emt 0:00:00]}
41. Qe2 {[%emt 0:03:47]} Qa1 {[%emt 0:02:40]} 42. Rc7 {[%emt 0:06:54]} Re3 {
[%emt 0:10:34]} 43. Qd2 {[%emt 0:02:50]} Re1 {[%emt 0:05:21]} 44. Rc8+ {[%emt
0:03:52]} Kh7 {[%emt 0:00:02]} 45. Ra8 {[%emt 0:03:26]} Rd1 {[%emt 0:04:49]}
46. Qe2 {[%emt 0:00:31]} Qb2 {[%emt 0:07:33]} 47. Qxb2 {[%emt 0:02:29]} Bxb2 {
[%emt 0:00:01]} 48. Ra2 {[%emt 0:00:31]} Rd2+ {[%emt 0:00:17]} 49. Kh3 {[%emt
0:00:28]} g5 {[%emt 0:00:32]} 50. Bb5 {[%emt 0:00:51]} f5 {[%emt 0:01:26]} 51.
exf5 {[%emt 0:02:02]} exf5 {[%emt 0:00:01]} 52. Be8 {[%emt 0:01:57]} Rf2 {
[%emt 0:01:44]} 53. Bd7 {[%emt 0:01:19]} Kg6 {[%emt 0:00:14]} 54. Bc8 {[%emt 0:
00:42]} Rd2 {[%emt 0:01:50]} 55. Ra5 {[%emt 0:01:26]} f4 {[%emt 0:00:23]} 56.
gxf4 {[%emt 0:00:39]} gxf4 {[%emt 0:00:06]} 57. Kg4 {[%emt 0:00:52]} Rxh2 {
[%emt 0:00:25]} 58. Kxf4 {[%emt 0:00:44]} 1/2-1/2

[Event "ETCC Women 2013"]
[Site "Warsaw"]
[Date "2013.11.15"]
[Round "7"]
[White "Jelica, Mara"]
[Black "Heinatz, Dr. Gundula"]
[Result "1/2-1/2"]
[ECO "B74"]
[WhiteElo "2252"]
[BlackElo "2169"]
[PlyCount "179"]
[EventDate "2013.??.??"]
[EventCountry "POL"]
[WhiteTeam "Croatia"]
[BlackTeam "Switzerland"]
[WhiteTeamCountry "CRO"]
[BlackTeamCountry "SUI"]
[TimeControl "40/5400+30:1800+30"]

1. e4 {[%emt 0:00:00]} c5 {[%emt 0:00:00]} 2. Nf3 {[%emt 0:00:00]} Nc6 {[%emt
0:00:00]} 3. d4 {[%emt 0:00:00]} cxd4 {[%emt 0:00:00]} 4. Nxd4 {[%emt 0:00:00]}
g6 {[%emt 0:00:07]} 5. Nc3 {[%emt 0:00:00]} Bg7 {[%emt 0:00:07]} 6. Be3 {[%emt
0:00:00]} Nf6 {[%emt 0:00:18]} 7. Be2 {[%emt 0:00:25]} O-O {[%emt 0:00:09]} 8.
Nb3 {[%emt 0:00:05]} d6 {[%emt 0:00:26]} 9. O-O {[%emt 0:00:07]} a6 {[%emt 0:
13:50]} 10. f4 {[%emt 0:02:53]} b5 {[%emt 0:01:01]} 11. Bf3 {[%emt 0:00:18]}
Bb7 {[%emt 0:06:13]} 12. Nd5 {[%emt 0:09:15]} Nxd5 {[%emt 0:07:08]} 13. exd5 {
[%emt 0:00:06]} Na5 {[%emt 0:00:29]} 14. Bd4 {[%emt 0:03:11]} Nc4 {[%emt 0:02:
40]} 15. Bxg7 {[%emt 0:01:42]} Kxg7 {[%emt 0:01:15]} 16. Qd4+ {[%emt 0:01:10]}
Kg8 {[%emt 0:00:12]} 17. Rae1 {[%emt 0:02:14]} Re8 {[%emt 0:02:17]} 18. Kh1 {
[%emt 0:08:23]} Qb6 {[%emt 0:00:33]} 19. Qc3 {[%emt 0:11:31]} Rac8 {[%emt 0:04:
17]} 20. f5 {[%emt 0:03:23]} b4 {[%emt 0:03:48]} 21. Qd3 {[%emt 0:00:29]} Nxb2
{[%emt 0:01:42]} 22. Qd2 {[%emt 0:00:25]} Kg7 {[%emt 0:08:13]} 23. fxg6 {[%emt
0:04:00]} hxg6 {[%emt 0:01:08]} 24. Bg4 {[%emt 0:04:35]} f6 {[%emt 0:15:57]}
25. Bxc8 {[%emt 0:00:49]} Bxc8 {[%emt 0:00:06]} 26. Re4 {[%emt 0:01:58]} a5 {
[%emt 0:07:49]} 27. Rfe1 {[%emt 0:02:32]} Qc7 {[%emt 0:00:53]} 28. Qe2 {[%emt
0:01:08]} Kf7 {[%emt 0:00:45]} 29. Nxa5 {[%emt 0:02:40]} Bf5 {[%emt 0:02:50]}
30. Rxb4 {[%emt 0:00:51]} Qxa5 {[%emt 0:00:51]} 31. Rxb2 {[%emt 0:00:05]} Qxd5
{[%emt 0:00:05]} 32. a4 {[%emt 0:02:36]} Qa5 {[%emt 0:01:37]} 33. Rb7 {[%emt 0:
00:38]} Qe5 {[%emt 0:01:41]} 34. Qc4+ {[%emt 0:04:35]} Be6 {[%emt 0:01:56]} 35.
Qb4 {[%emt 0:04:42]} Qd5 {[%emt 0:01:40]} 36. Qb5 {[%emt 0:05:41]} Qd2 {[%emt
0:03:48]} 37. Qe2 {[%emt 0:00:46]} Qxe2 {[%emt 0:02:44]} 38. Rxe2 {[%emt 0:00:
01]} f5 {[%emt 0:00:56]} 39. Ra7 {[%emt 0:01:57]} Kf6 {[%emt 0:00:25]} 40. a5 {
[%emt 0:00:00]} Bc4 {[%emt 0:00:00]} 41. Re1 {[%emt 0:01:08]} e5 {[%emt 0:03:
44]} 42. Rc7 {[%emt 0:00:32]} d5 {[%emt 0:05:30]} 43. Rc6+ {[%emt 0:00:42]} Kg5
{[%emt 0:00:16]} 44. Kg1 {[%emt 0:02:20]} f4 {[%emt 0:02:35]} 45. a6 {[%emt 0:
01:21]} Re7 {[%emt 0:03:18]} 46. Ra1 {[%emt 0:09:22]} Ra7 {[%emt 0:00:21]} 47.
Kf2 {[%emt 0:00:21]} Kf5 {[%emt 0:00:30]} 48. h3 {[%emt 0:02:06]} g5 {[%emt 0:
00:36]} 49. g4+ {[%emt 0:01:52]} fxg3+ {[%emt 0:05:01]} 50. Kxg3 {[%emt 0:00:
02]} Bb5 {[%emt 0:01:10]} 51. Rb6 {[%emt 0:00:41]} Bc4 {[%emt 0:00:05]} 52. Ra4
{[%emt 0:03:51]} e4 {[%emt 0:01:20]} 53. Kf2 {[%emt 0:03:34]} Kf4 {[%emt 0:00:
47]} 54. Ra3 {[%emt 0:03:13]} Ke5 {[%emt 0:03:19]} 55. c3 {[%emt 0:03:31]} Kf4
{[%emt 0:00:36]} 56. Rf6+ {[%emt 0:01:29]} Ke5 {[%emt 0:00:05]} 57. Rf8 {[%emt
0:01:07]} Rxa6 {[%emt 0:01:15]} 58. Rxa6 {[%emt 0:00:05]} Bxa6 {[%emt 0:00:05]}
59. Ke3 {[%emt 0:00:35]} Bc4 {[%emt 0:00:42]} 60. Rh8 {[%emt 0:02:41]} Kf5 {
[%emt 0:00:32]} 61. Rf8+ {[%emt 0:00:35]} Ke5 {[%emt 0:00:08]} 62. Rf2 {[%emt
0:00:25]} Bb3 {[%emt 0:01:09]} 63. Rf8 {[%emt 0:00:22]} Bc4 {[%emt 0:00:05]}
64. Kf2 {[%emt 0:00:05]} Bb3 {[%emt 0:00:42]} 65. Rb8 {[%emt 0:01:50]} Bc4 {
[%emt 0:00:51]} 66. Rf8 {[%emt 0:01:23]} Bd3 {[%emt 0:01:36]} 67. Ke3 {[%emt 0:
00:11]} Bc4 {[%emt 0:00:07]} 68. h4 {[%emt 0:00:22]} gxh4 {[%emt 0:00:13]} 69.
Rh8 {[%emt 0:00:02]} Kd6 {[%emt 0:02:55]} 70. Kd4 {[%emt 0:00:21]} Ke6 {[%emt
0:00:45]} 71. Rxh4 {[%emt 0:00:14]} Kf5 {[%emt 0:00:11]} 72. Rh8 {[%emt 0:00:
25]} Bb3 {[%emt 0:00:48]} 73. Rh5+ {[%emt 0:00:16]} Ke6 {[%emt 0:00:51]} 74.
Rg5 {[%emt 0:00:41]} Ba2 {[%emt 0:00:10]} 75. Re5+ {[%emt 0:00:19]} Kd6 {[%emt
0:00:11]} 76. Re8 {[%emt 0:00:11]} Bb3 {[%emt 0:00:12]} 77. Rb8 {[%emt 0:00:09]
} Bc4 {[%emt 0:01:39]} 78. Rb6+ {[%emt 0:00:04]} Kd7 {[%emt 0:00:29]} 79. Rh6 {
[%emt 0:00:16]} Bb3 {[%emt 0:01:08]} 80. Rh4 {[%emt 0:00:25]} Ke6 {[%emt 0:00:
24]} 81. Rh5 {[%emt 0:00:13]} Ba2 {[%emt 0:00:39]} 82. Rh6+ {[%emt 0:00:16]}
Kf5 {[%emt 0:00:21]} 83. Rh8 {[%emt 0:00:50]} Ke6 {[%emt 0:00:46]} 84. Ra8 {
[%emt 0:00:14]} Bc4 {[%emt 0:00:16]} 85. Re8+ {[%emt 0:00:10]} Kf5 {[%emt 0:00:
48]} 86. Re5+ {[%emt 0:00:10]} Kf6 {[%emt 0:00:17]} 87. Rh5 {[%emt 0:00:30]}
Ke6 {[%emt 0:00:05]} 88. Ke3 {[%emt 0:00:06]} Kd6 {[%emt 0:00:48]} 89. Kf4 {
[%emt 0:00:21]} Kc5 {[%emt 0:00:19]} 90. Ke3 {[%emt 0:01:26]} 1/2-1/2